fUSD/lending_fUSD_20240519
["ID","MTS","AMOUNT","RATE_DAILY","PERIOD"]
[327455538,1716079856804,-602.52,0.00027945,2]
[327455539,1716079856813,-323.39,0.00027945,2]
[327455540,1716079856822,-1082.875413,0.00027945,7]
[327455541,1716079856832,-500.0,0.00027945,2]
[327455542,1716079856841,-500.0,0.00027945,2]
[327455543,1716079856854,-1082.875413,0.00027945,7]
[327455544,1716079856864,-840.77,0.00027945,2]
[327455545,1716079856873,-500.0,0.00027945,2]
[327455546,1716079856883,-608.64,0.00027945,2]
[327455547,1716079856893,-316.52626634,0.00027945,2]
[327455548,1716079856902,-482.66452758,0.00027945,2]
[327455549,1716079856917,-536.02,0.00027945,2]
[327455550,1716079856927,-1106.38,0.00027945,2]
[327455551,1716079856937,-500.0,0.00027945,2]
[327455552,1716079856947,-500.0,0.00027945,2]
[327455553,1716079856956,-500.0,0.00027945,2]
[327455554,1716079856966,-500.0,0.00027945,2]
[327455555,1716079856975,-500.0,0.00027945,2]
[327455556,1716079856985,-500.0,0.00027945,2]
[327455557,1716079856995,-957.21,0.00027945,2]
[327455558,1716079857005,-1257.0,0.00027945,2]
[327455559,1716079857015,-343.92248794,0.00027945,2]
[327455560,1716079857025,-500.0,0.00027945,2]
[327455561,1716079857034,-500.0,0.00027945,2]
[327455562,1716079857044,-500.0,0.00027945,2]
[327455563,1716079857054,-500.0,0.00027945,2]
[327455564,1716079857063,-500.0,0.00027945,2]
[327455565,1716079857073,-1352.16,0.00027945,2]
[327455566,1716079857084,-500.0,0.00027945,2]
[327455567,1716079857094,-684.6,0.00027945,2]
[327455568,1716079857103,-1072.66,0.00027945,2]
[327455569,1716079857113,-849.73,0.00027945,2]
[327455570,1716079857123,-500.0,0.00027945,2]
[327455571,1716079857132,-874.66,0.00027945,2]
[327455572,1716079857142,-585.08,0.00027945,2]
[327455573,1716079857152,-1990.29,0.00027945,2]
[327455574,1716079857162,-545.44,0.00027945,2]
[327455575,1716079857172,-1243.99,0.00027945,2]
[327455576,1716079857182,-500.0,0.00027945,2]
[327455577,1716079857192,-294.63274004,0.00027945,2]
[327455578,1716079857202,-750.45,0.00027945,2]
[327455579,1716079857211,-748.72,0.00027945,2]
[327455580,1716079857220,-1292.43,0.00027945,2]
[327455581,1716079857230,-500.0,0.00027945,2]
[327455582,1716079857241,-846.9,0.00027945,2]
[327455583,1716079857251,-500.0,0.00027945,2]
[327455584,1716079857261,-1250.19,0.00027945,2]
[327455585,1716079857271,-1463.37,0.00027945,2]
[327455586,1716079857280,-500.0,0.00027945,2]
[327455587,1716079857290,-530.63,0.00027945,2]
[327455588,1716079857299,-500.0,0.00027945,2]
[327455589,1716079857308,-843.77,0.00027945,2]
[327455590,1716079857318,-1072.07,0.00027945,2]
[327455591,1716079857327,-500.0,0.00027945,2]
[327455592,1716079857337,-896.67,0.00027945,2]
[327455593,1716079857347,-500.0,0.00027945,2]
[327455594,1716079857357,-500.0,0.00027945,2]
[327455595,1716079857366,-500.0,0.00027945,2]
[327455596,1716079857375,-733.96,0.00027945,2]
[327455597,1716079857385,-1493.69,0.00027945,2]
[327455598,1716079857395,-996.4,0.00027945,2]
[327455599,1716079857405,-500.0,0.00027945,2]
[327455600,1716079857415,-500.0,0.00027945,2]
[327455601,1716079857424,-500.0,0.00027945,2]
[327455602,1716079857433,-500.0,0.00027945,2]
[327455603,1716079857444,-1067.83,0.00027945,2]
[327455604,1716079857454,-500.0,0.00027945,2]
[327455605,1716079857463,-717.91,0.00027945,2]
[327455606,1716079857473,-303.97106877,0.00027945,2]
[327455607,1716079857482,-671.98,0.00027945,2]
[327455608,1716079857491,-414.26,0.00027945,2]
[327455609,1716079857501,-500.0,0.00027945,2]
[327455610,1716079857511,-637.51,0.00027945,2]
[327455611,1716079857520,-500.0,0.00027945,2]
[327455612,1716079857531,-709.05,0.00027945,2]
[327455613,1716079857540,-500.0,0.00027945,2]
[327455614,1716079857550,-1264.55,0.00027945,2]
[327455615,1716079857559,-500.0,0.00027945,2]
[327455616,1716079857568,-753.77,0.00027945,2]
[327455617,1716079857578,-500.0,0.00027945,2]
[327455618,1716079857587,-218.21924859,0.00027945,2]
[327455619,1716079857688,-1101.63,0.00027945,2]
[327455620,1716079857698,-500.0,0.00027945,2]
[327455621,1716079857708,-1105.23,0.00027945,2]
[327455622,1716079857717,-516.07,0.00027945,2]
[327455623,1716079857727,-500.0,0.00027945,2]
[327455624,1716079857736,-500.0,0.00027945,2]
[327455625,1716079857746,-500.0,0.00027945,2]
[327455626,1716079857755,-1016.72,0.00027945,2]
[327455627,1716079857764,-500.0,0.00027945,2]
[327455628,1716079857773,-1552.71,0.00027945,2]
[327455629,1716079857783,-1614.27,0.00027945,2]
[327455630,1716079857792,-822.34,0.00027945,2]
[327455631,1716079857802,-500.0,0.00027945,2]
[327455632,1716079857812,-745.19,0.00027945,2]
[327455633,1716079857822,-500.0,0.00027945,2]
[327455634,1716079857831,-861.8,0.00027945,2]
[327455635,1716079857840,-500.0,0.00027945,2]
[327455636,1716079857852,-500.0,0.00027945,2]
[327455637,1716079857862,-867.38,0.00027945,2]
[327455638,1716079857871,-500.0,0.00027945,2]
[327455639,1716079857881,-790.2,0.00027945,2]
[327455640,1716079857892,-908.09,0.00027945,2]
[327455641,1716079857901,-500.0,0.00027945,2]
[327455642,1716079857911,-500.0,0.00027945,2]
[327455643,1716079857920,-2847.34,0.00027945,2]
[327455644,1716079857931,-500.0,0.00027945,2]
[327455645,1716079857940,-500.0,0.00027945,2]
[327455646,1716079857950,-397.91219176,0.00027945,2]
[327455647,1716079857959,-500.0,0.00027945,2]
[327455648,1716079857969,-500.0,0.00027945,2]
[327455649,1716079857978,-500.0,0.00027945,2]
[327455650,1716079857987,-231.081675,0.00027945,7]
[327455651,1716079857997,-500.0,0.00027945,2]
[327455652,1716079858007,-231.081675,0.00027945,7]
[327455653,1716079858016,-500.0,0.00027945,2]
[327455654,1716079858025,-500.0,0.00027945,2]
[327455655,1716079858034,-879.34,0.00027945,2]
[327455656,1716079858045,-500.0,0.00027945,2]
[327455657,1716079858053,-1800.44,0.00027945,2]
[327455658,1716079858063,-500.0,0.00027945,2]
[327455659,1716079858072,-500.0,0.00027945,2]
[327455660,1716079858082,-751.88,0.00027945,2]
[327455661,1716079858092,-500.0,0.00027945,2]
[327455662,1716079858101,-690.03,0.00027945,2]
[327455663,1716079858111,-1239.57,0.00027945,2]
[327455664,1716079858120,-311.691066,0.00027945,7]
[327455665,1716079858129,-311.691066,0.00027945,7]
[327455666,1716079858139,-209.044597,0.00027945,7]
[327455667,1716079858148,-694.45,0.00027945,2]
[327455668,1716079858157,-280.1599474,0.00027945,2]
[327455669,1716079858167,-209.044597,0.00027945,7]
[327455670,1716079858176,-2119.09,0.00027945,2]
[327455671,1716079858186,-500.0,0.00027945,2]
[327455672,1716079858195,-151.0,0.00027945,7]
[327455673,1716079858205,-500.0,0.00027945,2]
[327455674,1716079858214,-351.48,0.00027945,2]
[327455675,1716079858224,-353.61,0.00027945,2]
[327455676,1716079858233,-500.0,0.00027945,2]
[327455677,1716079858243,-2258.52,0.00027945,2]
[327455678,1716079858252,-500.0,0.00027945,2]
[327455679,1716079858262,-500.0,0.00027945,2]
[327455680,1716079858272,-582.13,0.00027945,2]
[327455681,1716079858281,-487.35382848,0.00027945,2]
[327455682,1716079858291,-663.78,0.00027945,2]
[327455683,1716079858300,-592.94,0.00027945,2]
[327455684,1716079858310,-500.0,0.00027945,2]
[327455685,1716079858319,-500.0,0.00027945,2]
[327455686,1716079858329,-500.0,0.00027945,2]
[327455687,1716079858339,-663.37,0.00027945,2]
[327455688,1716079858348,-596.02,0.00027945,2]
[327455689,1716079858358,-2187.67,0.00027945,2]
[327455690,1716079858367,-500.0,0.00027945,2]
[327455691,1716079858376,-252.86873,0.00027945,7]
[327455692,1716079858386,-500.0,0.00027945,2]
[327455693,1716079858395,-500.0,0.00027945,2]
[327455694,1716079858405,-500.0,0.00027945,2]
[327455695,1716079858414,-897.21,0.00027945,2]
[327455696,1716079858423,-500.0,0.00027945,2]
[327455697,1716079858433,-500.0,0.00027945,2]
[327455698,1716079858442,-151.0,0.00027945,7]
[327455699,1716079858451,-1986.87,0.00027945,2]
[327455700,1716079858460,-252.86873,0.00027945,7]
[327455701,1716079858470,-567.98,0.00027945,2]
[327455702,1716079858479,-643.54,0.00027945,2]
[327455703,1716079858488,-649.98,0.00027945,2]
[327455704,1716079858498,-2292.47,0.00027945,2]
[327455705,1716079858508,-500.0,0.00027945,2]
[327455706,1716079858517,-2459.44,0.00027945,2]
[327455707,1716079858526,-151.0,0.00027945,7]
[327455708,1716079858536,-702.64,0.00027945,2]
[327455709,1716079858545,-8969.82,0.00027945,2]
[327455710,1716079858555,-500.0,0.00027945,2]
[327455711,1716079858564,-500.0,0.00027945,2]
[327455712,1716079858573,-1618.24,0.00027945,2]
[327455713,1716079858583,-500.0,0.00027945,2]
[327455714,1716079858592,-2898.95,0.00027945,2]
[327455715,1716079858601,-500.0,0.00027945,2]
[327455716,1716079858611,-7341.3,0.00027945,2]
[327455717,1716079858620,-500.0,0.00027945,2]
[327455718,1716079858630,-859.92,0.00027945,2]
[327455719,1716079858639,-597.52,0.00027945,2]
[327455720,1716079858648,-2396.63,0.00027945,2]
[327455721,1716079858658,-847.62,0.00027945,2]
[327455722,1716079858667,-676.53,0.00027945,2]
[327455723,1716079858676,-813.35,0.00027945,2]
[327455724,1716079858686,-1434.0,0.00027945,2]
[327455725,1716079858695,-151.0,0.00027945,7]
[327455726,1716079858704,-9386.79,0.00027945,2]
[327455727,1716079858714,-151.0,0.00027945,7]
[327455728,1716079858723,-500.0,0.00027945,2]
[327455729,1716079858732,-756.32,0.00027945,2]
[327455730,1716079858741,-151.0,0.00027945,7]
[327455731,1716079858752,-30275.28,0.00027945,2]
[327455732,1716079858761,-1856.14,0.00027945,2]
[327455733,1716079858770,-4020.85,0.00027945,2]
[327455734,1716079858779,-762.31,0.00027945,2]
[327455735,1716079858789,-500.0,0.00027945,2]
[327455736,1716079858798,-171.81,0.00027945,2]
[327455737,1716079858807,-4821.09,0.00027945,2]
[327455738,1716079858817,-768.86,0.00027945,2]
[327455739,1716079858826,-1175.05,0.00027945,2]
[327455740,1716079858835,-500.0,0.00027945,2]
[327455741,1716079858844,-500.0,0.00027945,2]
[327455742,1716079858858,-500.0,0.00027945,2]
[327455743,1716079858867,-614.98,0.00027945,2]
[327455744,1716079858876,-500.0,0.00027945,2]
[327455745,1716079858885,-8593.12,0.00027945,2]
[327455746,1716079858894,-994.65,0.00027945,2]
[327455747,1716079858903,-616.67,0.00027945,2]
[327455748,1716079858912,-500.0,0.00027945,2]
[327455749,1716079858922,-900.63,0.00027945,2]
[327455750,1716079858931,-4266.05,0.00027945,2]
[327455751,1716079858940,-966.41,0.00027945,2]
[327455752,1716079858950,-912.23,0.00027945,2]
[327455753,1716079858959,-500.0,0.00027945,2]
[327455754,1716079858968,-500.0,0.00027945,2]
[327455755,1716079858978,-645.69,0.00027945,2]
[327455756,1716079858987,-1869.0,0.00027945,2]
[327455757,1716079858996,-216.53,0.00027945,2]
[327455758,1716079859005,-151.0,0.00027945,7]
[327455759,1716079859014,-971.87,0.00027945,2]
[327455760,1716079859024,-6268.94,0.00027945,2]
[327455761,1716079859033,-541.88,0.00027945,2]
[327455762,1716079859042,-942.94,0.00027945,2]
[327455763,1716079859052,-500.0,0.00027945,2]
[327455764,1716079859061,-973.68,0.00027945,2]
[327455765,1716079859070,-500.0,0.00027945,2]
[327455766,1716079859079,-544.611513,0.00027945,7]
[327455767,1716079859088,-500.0,0.00027945,2]
[327455768,1716079859097,-1701.01,0.00027945,2]
[327455769,1716079859107,-7483.61,0.00027945,2]
[327455770,1716079859116,-179.78339101,0.00027945,2]
[327455771,1716079859125,-544.611513,0.00027945,7]
[327455772,1716079859134,-291.96,0.00027945,2]
[327455773,1716079859144,-500.0,0.00027945,2]
[327455774,1716079859153,-240.63811341,0.00027945,2]
[327455775,1716079859162,-1401.02,0.00027945,2]
[327455776,1716079859171,-676.79,0.00027945,2]
[327455777,1716079859180,-500.0,0.00027945,2]
[327455778,1716079859189,-537.08,0.00027945,2]
[327455779,1716079859198,-500.0,0.00027945,2]
[327455780,1716079859207,-6981.65,0.00027945,2]
[327455781,1716079859216,-2717.83,0.00027945,2]
[327455782,1716079859226,-838.88,0.00027945,2]
[327455783,1716079859235,-502.76,0.00027945,2]
[327455784,1716079859244,-2645.1,0.00027945,2]
[327455785,1716079859254,-500.0,0.00027945,2]
[327455786,1716079859264,-500.0,0.00027945,2]
[327455787,1716079859273,-865.2,0.00027945,2]
[327455788,1716079859282,-1132.35,0.00027945,2]
[327455789,1716079859291,-812.15,0.00027945,2]
[327455790,1716079859311,-530.646126,0.00027945,7]
[327455791,1716079859321,-1556.62,0.00027945,2]
[327455792,1716079859331,-718.44,0.00027945,2]
[327455793,1716079859340,-1265.15,0.00027945,2]
[327455794,1716079859349,-530.646126,0.00027945,7]
[327455795,1716079859359,-14055.37,0.00027945,2]
[327455796,1716079859368,-2634.63,0.00027945,2]
[327455797,1716079859377,-15063.88,0.00027945,2]
[327455798,1716079859386,-500.0,0.00027945,2]
[327455799,1716079859396,-2652.66,0.00027945,2]
[327455800,1716079859405,-742.79,0.00027945,2]
[327455801,1716079859415,-621.16,0.00027945,2]
[327455802,1716079859424,-794.5,0.00027945,2]
[327455803,1716079859434,-1250.69,0.00027945,2]
[327455804,1716079859442,-693.14,0.00027945,2]
[327455805,1716079859452,-500.0,0.00027945,2]
[327455806,1716079859461,-889.38,0.00027945,2]
[327455807,1716079859470,-1988.34,0.00027945,2]
[327455808,1716079859479,-500.0,0.00027945,2]
[327455809,1716079859488,-1357.07,0.00027945,2]
[327455810,1716079859498,-998.68,0.00027945,2]
[327455811,1716079859507,-500.0,0.00027945,2]
[327455812,1716079859516,-500.0,0.00027945,2]
[327455813,1716079859526,-5624.591496,0.00027945,7]
[327455814,1716079859536,-500.0,0.00027945,2]
[327455815,1716079859545,-500.0,0.00027945,2]
[327455816,1716079859555,-500.0,0.00027945,2]
[327455817,1716079859564,-500.0,0.00027945,2]
[327455818,1716079859574,-601.38,0.00027945,2]
[327455819,1716079859584,-615.62225004,0.00027945,2]
[327455820,1716079859594,-894.0,0.00027945,2]
[327455821,1716079859604,-5624.591496,0.00027945,7]
[327455822,1716079859614,-2431.12,0.00027945,2]
[327455823,1716079859624,-1539.56,0.00027945,2]
[327455824,1716079859634,-500.0,0.00027945,2]
[327455825,1716079859644,-511.27,0.00027945,2]
[327455826,1716079859654,-500.0,0.00027945,2]
[327455827,1716079859663,-500.0,0.00027945,2]
[327455828,1716079859673,-151.0,0.00027945,7]
[327455829,1716079859683,-1396.22,0.00027945,2]
[327455830,1716079859693,-500.0,0.00027945,2]
[327455831,1716079859703,-151.0,0.00027945,7]
[327455832,1716079859712,-151.0,0.00027945,7]
[327455833,1716079859722,-1300.21,0.00027945,2]
[327455834,1716079859732,-2267.23,0.00027945,2]
[327455835,1716079859741,-1327.72,0.00027945,2]
[327455836,1716079859751,-500.0,0.00027945,2]
[327455837,1716079859761,-151.0,0.00027945,7]
[327455838,1716079859770,-500.0,0.00027945,2]
[327455839,1716079859780,-151.0,0.00027945,7]
[327455840,1716079859790,-500.0,0.00027945,2]
[327455841,1716079859799,-3187.9,0.00027945,2]
[327455842,1716079859809,-500.0,0.00027945,2]
[327455843,1716079859819,-1229.67,0.00027945,2]
[327455844,1716079859829,-1554.51,0.00027945,2]
[327455845,1716079859838,-500.0,0.00027945,2]
[327455846,1716079859850,-500.0,0.00027945,2]
[327455847,1716079859861,-902.06,0.00027945,2]
[327455848,1716079859870,-500.0,0.00027945,2]
[327455849,1716079859880,-500.0,0.00027945,2]
[327455850,1716079859891,-739.0,0.00027945,2]
[327455851,1716079859900,-744.32,0.00027945,2]
[327455852,1716079859910,-500.0,0.00027945,2]
[327455853,1716079859919,-151.0,0.00027945,7]
[327455854,1716079859932,-566.09,0.00027945,2]
[327455855,1716079859941,-151.0,0.00027945,7]
[327455856,1716079859951,-2317.87,0.00027945,2]
[327455857,1716079859960,-500.0,0.00027945,2]
[327455858,1716079859970,-1543.54,0.00027945,2]
[327455859,1716079859979,-500.0,0.00027945,2]
[327455860,1716079859988,-500.0,0.00027945,2]
[327455861,1716079859999,-500.0,0.00027945,2]
[327455862,1716079860009,-500.0,0.00027945,2]
[327455863,1716079860019,-1576.46,0.00027945,2]
[327455864,1716079860028,-500.0,0.00027945,2]
[327455865,1716079860038,-1727.73,0.00027945,2]
[327455866,1716079860048,-1192.7,0.00027945,2]
[327455867,1716079860058,-702.53,0.00027945,2]
[327455868,1716079860067,-500.0,0.00027945,2]
[327455869,1716079860077,-902.92,0.00027945,2]
[327455870,1716079860086,-500.0,0.00027945,2]
[327455871,1716079860096,-500.0,0.00027945,2]
[327455872,1716079860106,-750.17,0.00027945,2]
[327455873,1716079860116,-683.13,0.00027945,2]
[327455874,1716079860126,-1571.87,0.00027945,2]
[327455875,1716079860136,-500.0,0.00027945,2]
[327455876,1716079860145,-1593.16,0.00027945,2]
[327455877,1716079860155,-1391.44,0.00027945,2]
[327455878,1716079860165,-500.0,0.00027945,2]
[327455879,1716079860175,-500.0,0.00027945,2]
[327455880,1716079860184,-734.3,0.00027945,2]
[327455881,1716079860194,-723.24,0.00027945,2]
[327455882,1716079860204,-765.2,0.00027945,2]
[327455883,1716079860213,-500.0,0.00027945,2]
[327455884,1716079860223,-1006.36,0.00027945,2]
[327455885,1716079860233,-500.0,0.00027945,2]
[327455886,1716079860243,-1946.51,0.00027945,2]
[327455887,1716079860253,-500.0,0.00027945,2]
[327455888,1716079860263,-500.0,0.00027945,2]
[327455889,1716079860273,-737.65,0.00027945,2]
[327455890,1716079860283,-1321.13,0.00027945,2]
[327455891,1716079860292,-340.963945,0.00027945,7]
[327455892,1716079860302,-500.0,0.00027945,2]
[327455893,1716079860313,-976.72,0.00027945,2]
[327455894,1716079860323,-500.0,0.00027945,2]
[327455895,1716079860333,-182.997182,0.00027945,7]
[327455896,1716079860343,-340.963945,0.00027945,7]
[327455897,1716079860353,-1844.47,0.00027945,2]
[327455898,1716079860369,-500.0,0.00027945,2]
[327455899,1716079860379,-500.0,0.00027945,2]
[327455900,1716079860389,-1337.56,0.00027945,2]
[327455901,1716079860399,-609.15,0.00027945,2]
[327455902,1716079860409,-892.71,0.00027945,2]
[327455903,1716079860419,-182.997182,0.00027945,7]
[327455904,1716079860430,-500.0,0.00027945,2]
[327455905,1716079860440,-713.62,0.00027945,2]
[327455906,1716079860450,-2601.94,0.00027945,2]
[327455907,1716079860461,-500.0,0.00027945,2]
[327455908,1716079860472,-1338.29,0.00027945,2]
[327455909,1716079860482,-500.0,0.00027945,2]
[327455910,1716079860493,-877.48,0.00027945,2]
[327455911,1716079860504,-500.0,0.00027945,2]
[327455912,1716079860514,-500.0,0.00027945,2]
[327455913,1716079860524,-955.29,0.00027945,2]
[327455914,1716079860534,-3753.72,0.00027945,2]
[327455915,1716079860544,-500.0,0.00027945,2]
[327455916,1716079860553,-3260.19,0.00027945,2]
[327455917,1716079860563,-500.0,0.00027945,2]
[327455918,1716079860573,-500.0,0.00027945,2]
[327455919,1716079860583,-2742.03,0.00027945,2]
[327455920,1716079860593,-1111.7,0.00027945,2]
[327455921,1716079860603,-151.0,0.00027945,7]
[327455922,1716079860614,-1864.26,0.00027945,2]
[327455923,1716079860624,-500.0,0.00027945,2]
[327455924,1716079860635,-500.0,0.00027945,2]
[327455925,1716079860645,-500.0,0.00027945,2]
[327455926,1716079860655,-500.0,0.00027945,2]
[327455927,1716079860665,-291.215969,0.00027945,7]
[327455928,1716079860676,-550.17,0.00027945,2]
[327455929,1716079860686,-500.0,0.00027945,2]
[327455930,1716079860696,-577.21,0.00027945,2]
[327455931,1716079860707,-1512.87,0.00027945,2]
[327455932,1716079860717,-697.0,0.00027945,2]
[327455933,1716079860727,-500.0,0.00027945,2]
[327455934,1716079860738,-2533.85,0.00027945,2]
[327455935,1716079860750,-679.17,0.00027945,2]
[327455936,1716079860760,-965.18,0.00027945,2]
[327455937,1716079860770,-1281.95,0.00027945,2]
[327455938,1716079860781,-500.0,0.00027945,2]
[327455939,1716079860793,-500.0,0.00027945,2]
[327455940,1716079860803,-500.0,0.00027945,2]
[327455941,1716079860814,-402.93749797,0.00027945,2]
[327455942,1716079860826,-150.0,0.00028107,7]
[327455943,1716079860837,-157.051909,0.00028148,22]
[327455944,1716079860848,-151.0,0.00028218,7]
[327455945,1716079860861,-151.0,0.00028218,7]
[327455946,1716079860871,-151.0,0.00028218,7]
[327455947,1716079860881,-151.0,0.00028218,7]
[327455948,1716079860891,-151.0,0.00028218,7]
[327455949,1716079860901,-151.0,0.00028218,7]
[327455950,1716079860911,-151.0,0.00028218,7]
[327455951,1716079860921,-151.0,0.00028218,7]
[327455952,1716079860932,-151.0,0.00028218,7]
[327455953,1716079860944,-151.0,0.00028218,7]
[327455954,1716079860955,-500.0,0.00028219,2]
[327455955,1716079860966,-500.0,0.00028219,2]
[327455956,1716079860976,-500.0,0.00028219,2]
[327455957,1716079860986,-500.0,0.00028219,2]
[327455958,1716079860996,-500.0,0.00028219,2]
[327455959,1716079861008,-500.0,0.00028219,2]
[327455960,1716079861018,-500.0,0.00028219,2]
[327455961,1716079861027,-500.0,0.00028219,2]
[327455962,1716079861037,-694.12,0.00028219,2]
[327455963,1716079861047,-500.0,0.00028219,2]
[327455964,1716079861057,-500.0,0.00028219,2]
[327455965,1716079861067,-500.0,0.00028219,2]
[327455966,1716079861078,-500.0,0.00028219,2]
[327455967,1716079861088,-500.0,0.00028219,2]
[327455968,1716079861100,-566.02,0.00028219,2]
[327455969,1716079861111,-500.0,0.00028219,2]
[327455970,1716079861120,-500.0,0.00028219,2]
[327455971,1716079861130,-500.0,0.00028219,2]
[327455972,1716079861141,-500.0,0.00028219,2]
[327455973,1716079861151,-500.0,0.00028219,2]
[327455974,1716079861161,-608.41,0.00028219,2]
[327455975,1716079861171,-500.0,0.00028219,2]
[327455976,1716079861181,-500.0,0.00028219,2]
[327455977,1716079861191,-1131.97,0.00028219,2]
[327455978,1716079861201,-500.0,0.00028219,2]
[327455979,1716079861210,-151.0,0.00028219,7]
[327455980,1716079861220,-151.0,0.00028219,7]
[327455981,1716079861230,-579.57,0.00028219,2]
[327455982,1716079861240,-500.0,0.00028219,2]
[327455983,1716079861251,-500.0,0.00028219,2]
[327455984,1716079861261,-500.0,0.00028219,2]
[327455985,1716079861272,-151.0,0.00028219,7]
[327455986,1716079861282,-500.0,0.00028219,2]
[327455987,1716079861292,-500.0,0.00028219,2]
[327455988,1716079861302,-500.0,0.00028219,2]
[327455989,1716079861312,-500.09,0.00028219,2]
[327455990,1716079861321,-500.0,0.00028219,2]
[327455991,1716079861331,-151.0,0.00028219,7]
[327455992,1716079861341,-873.62,0.00028219,2]
[327455993,1716079861351,-500.0,0.00028219,2]
[327455994,1716079861361,-500.0,0.00028219,2]
[327455995,1716079861370,-500.0,0.00028219,2]
[327455996,1716079861380,-500.0,0.00028219,2]
[327455997,1716079861390,-500.0,0.00028219,2]
[327455998,1716079861400,-176.063461,0.00028219,7]
[327455999,1716079861410,-176.063461,0.00028219,7]
[327456000,1716079861422,-500.0,0.00028219,2]
[327456001,1716079861432,-500.0,0.00028219,2]
[327456002,1716079861443,-500.0,0.00028219,2]
[327456003,1716079861452,-648.09,0.00028219,2]
[327456004,1716079861463,-523.3,0.00028219,2]
[327456005,1716079861474,-500.0,0.00028219,2]
[327456006,1716079861484,-278.642658,0.00028219,7]
[327456007,1716079861495,-575.93102911,0.00028219,2]
[327456008,1716079861507,-500.0,0.00028219,2]
[327456009,1716079861518,-500.0,0.00028219,2]
[327456010,1716079861528,-500.0,0.00028219,2]
[327456011,1716079861539,-278.642658,0.00028219,7]
[327456012,1716079861549,-271.39411427,0.00028219,2]
[327456013,1716079861559,-801.03,0.00028219,2]
[327456014,1716079861570,-558.63,0.00028219,2]
[327456015,1716079861580,-799.77,0.00028219,2]
[327456016,1716079861590,-591.98,0.00028219,2]
[327456017,1716079861600,-500.0,0.00028219,2]
[327456018,1716079861610,-500.0,0.00028219,2]
[327456019,1716079861620,-892.31,0.00028219,2]
[327456020,1716079861630,-500.0,0.00028219,2]
[327456021,1716079861642,-464.916911,0.00028219,7]
[327456022,1716079861655,-500.0,0.00028219,2]
[327456023,1716079861667,-655.12,0.00028219,2]
[327456024,1716079861676,-616.57,0.00028219,2]
[327456025,1716079861687,-517.62,0.00028219,2]
[327456026,1716079861697,-500.0,0.00028219,2]
[327456027,1716079861708,-500.0,0.00028219,2]
[327456028,1716079861925,-500.0,0.00028219,2]
[327456029,1716079861937,-602.52,0.00028219,2]
[327456030,1716079861948,-1082.875413,0.00028219,7]
[327456031,1716079861959,-500.0,0.00028219,2]
[327456032,1716079861970,-500.0,0.00028219,2]
[327456033,1716079861981,-1082.875413,0.00028219,7]
[327456034,1716079861990,-840.77,0.00028219,2]
[327456035,1716079862001,-500.0,0.00028219,2]
[327456036,1716079862010,-608.64,0.00028219,2]
[327456037,1716079862020,-536.02,0.00028219,2]